[Event "44th Chess Olympiad Open 2022"]
[Site "Chennai"]
[Date "2022.08.03"]
[Round "6.77"]
[White "Bansal, Nayan"]
[Black "Al Ibrahim, Abdulrahman"]
[Result "0-1"]
[WhiteElo "1444"]
[BlackElo "1822"]
[Annotator "NA RC"]
[PlyCount "50"]
[EventDate "2022.??.??"]
[TimeControl "60"]

1. e4 {[%emt 0:00:04]} e6 {[%emt 0:00:05]} 2. d4 {[%emt 0:00:16]} d5 {[%emt 0:
00:00]} 3. exd5 {[%emt 0:00:21]} exd5 {[%emt 0:00:05]} 4. Nf3 {[%emt 0:00:40]}
Nf6 {[%emt 0:00:32]} 5. c4 {[%emt 0:01:41]} Bb4+ {[%emt 0:03:12]} 6. Bd2 {
[%emt 0:01:42]} Bxd2+ {[%emt 0:00:25]} 7. Nbxd2 {[%emt 0:00:15]} O-O {[%emt 0:
00:00]} 8. Be2 {[%emt 0:00:49]} dxc4 {[%emt 0:01:47]} 9. Nxc4 {[%emt 0:00:58]}
Nc6 {[%emt 0:04:08]} 10. O-O {[%emt 0:02:19]} Be6 {[%emt 0:00:35]} 11. Nce5 {
[%emt 0:07:26]} Qd6 {[%emt 0:03:11]} 12. Nxc6 {[%emt 0:16:22]} Qxc6 {[%emt 0:
00:00]} 13. Ne5 {[%emt 0:01:47]} Qb6 {[%emt 0:02:12]} 14. b3 {[%emt 0:05:08]}
Rad8 {[%emt 0:02:32]} 15. Bc4 {[%emt 0:17:01]} Rxd4 {[%emt 0:11:12]} 16. Qc2 {
[%emt 0:01:46]} Rfd8 {[%emt 0:03:16]} 17. Bxe6 {[%emt 0:04:02]} Qxe6 {[%emt 0:
00:00]} 18. Rfe1 {[%emt 0:01:30]} Qd6 {[%emt 0:04:02]} 19. Nc4 {[%emt 0:04:12]}
Qc6 {[%emt 0:11:54]} 20. a4 {[%emt 0:05:18]} h6 {[%emt 0:02:22]} 21. h3 {
[%emt 0:01:13]} Nd5 {[%emt 0:09:39]} 22. Red1 {[%emt 0:13:37]} Nf4 {[%emt 0:00:
00]} 23. f3 {[%emt 0:02:30]} Qc5 {[%emt 0:01:49]} 24. Rxd4 {[%emt 0:00:47]}
Qxd4+ {[%emt 0:00:06]} 25. Kh1 {[%emt 0:01:42]} Qxa1+ {[%emt 0:00:07]} 0-1

[Event "44th Chess Olympiad Open 2022"]
[Site "Chennai"]
[Date "2022.08.03"]
[Round "6.78"]
[White "Tchouka, Yakini"]
[Black "Thomas, Larry"]
[Result "1-0"]
[WhiteElo "1934"]
[BlackElo "1317"]
[Annotator "NA RC"]
[PlyCount "158"]
[EventDate "2022.??.??"]
[TimeControl "60"]

1. e4 {[%emt 0:00:02]} c6 {[%emt 0:00:15]} 2. d4 {[%emt 0:00:13]} d5 {[%emt 0:
00:00]} 3. exd5 {[%emt 0:00:08]} cxd5 {[%emt 0:00:17]} 4. c4 {[%emt 0:00:18]}
Nf6 {[%emt 0:00:55]} 5. Nc3 {[%emt 0:00:24]} Nc6 {[%emt 0:00:59]} 6. cxd5 {
[%emt 0:09:48]} Nxd5 {[%emt 0:00:14]} 7. Bc4 {[%emt 0:01:14]} e6 {[%emt 0:00:
00]} 8. Nf3 {[%emt 0:00:43]} Be7 {[%emt 0:03:01]} 9. O-O {[%emt 0:00:43]} O-O {
[%emt 0:01:29]} 10. a3 {[%emt 0:03:51]} Nxc3 {[%emt 0:06:47]} 11. bxc3 {
[%emt 0:00:16]} Qc7 {[%emt 0:02:38]} 12. Qe2 {[%emt 0:20:22]} Bf6 {[%emt 0:00:
00]} 13. Bg5 {[%emt 0:11:09]} Bxg5 {[%emt 0:02:54]} 14. Nxg5 {[%emt 0:00:11]}
h6 {[%emt 0:02:21]} 15. Nf3 {[%emt 0:01:08]} b6 {[%emt 0:05:41]} 16. Bd3 {
[%emt 0:01:42]} Bb7 {[%emt 0:02:22]} 17. Rac1 {[%emt 0:06:01]} Rad8 {[%emt 0:
00:00]} 18. Bb1 {[%emt 0:02:19]} Rfe8 {[%emt 0:01:39]} 19. Qc2 {[%emt 0:04:54]}
g6 {[%emt 0:00:40]} 20. h4 {[%emt 0:00:18]} h5 {[%emt 0:10:34]} 21. Rfe1 {
[%emt 0:02:44]} Qe7 {[%emt 0:09:21]} 22. Ng5 {[%emt 0:01:45]} Qf6 {[%emt 0:00:
00]} 23. f3 {[%emt 0:08:52]} Ne7 {[%emt 0:05:15]} 24. Qf2 {[%emt 0:05:50]} Rd7
{[%emt 0:08:38]} 25. Bd3 {[%emt 0:05:41]} Red8 {[%emt 0:00:40]} 26. Be4 {
[%emt 0:00:35]} Bd5 {[%emt 0:00:46]} 27. Bxd5 {[%emt 0:01:42]} Nxd5 {[%emt 0:
00:00]} 28. a4 {[%emt 0:05:51]} Rc7 {[%emt 0:02:36]} 29. c4 {[%emt 0:01:43]}
Ne7 {[%emt 0:00:55]} 30. Red1 {[%emt 0:00:19]} Rcd7 {[%emt 0:01:29]} 31. Ne4 {
[%emt 0:00:41]} Qg7 {[%emt 0:00:34]} 32. c5 {[%emt 0:02:32]} bxc5 {[%emt 0:00:
00]} 33. Rxc5 {[%emt 0:00:10]} Nf5 {[%emt 0:01:21]} 34. d5 {[%emt 0:00:37]}
exd5 {[%emt 0:01:06]} 35. Ng3 {[%emt 0:00:44]} Nxg3 {[%emt 0:01:12]} 36. Qxg3 {
[%emt 0:00:06]} d4 {[%emt 0:00:27]} 37. Rd3 {[%emt 0:00:37]} Kh7 {[%emt 0:00:
00]} 38. Rc7 {[%emt 0:01:17]} Qf6 {[%emt 0:01:21]} 39. Rxd7 {[%emt 0:01:03]}
Rxd7 {[%emt 0:00:12]} 40. Qg5 {[%emt 0:00:11]} Qxg5 {[%emt 0:00:29]} 41. hxg5 {
[%emt 0:30:02]} Kg7 {[%emt 0:30:37]} 42. Kf2 {[%emt 0:00:11]} f5 {[%emt 0:00:
00]} 43. f4 {[%emt 0:01:20]} Kf7 {[%emt 0:00:32]} 44. Rb3 {[%emt 0:00:00]} Ke6
{[%emt 0:00:00]} 45. Rb5 {[%emt 0:00:00]} Rd5 {[%emt 0:00:00]} 46. Rb7 {
[%emt 0:00:00]} Rd7 {[%emt 0:00:00]} 47. Rb5 {[%emt 0:00:00]} d3 {[%emt 0:00:
00]} 48. Ke1 {[%emt 0:00:00]} Rd4 {[%emt 0:00:00]} 49. Rb7 {[%emt 0:00:00]}
Rxa4 {[%emt 0:00:00]} 50. g3 {[%emt 0:00:00]} Kd5 {[%emt 0:00:00]} 51. Kd2 {
[%emt 0:00:00]} Ke4 {[%emt 0:00:00]} 52. Re7+ {[%emt 0:00:00]} Kd4 {[%emt 0:00:
00]} 53. Rd7+ {[%emt 0:00:00]} Kc5 {[%emt 0:00:00]} 54. Rc7+ {[%emt 0:00:00]}
Kd5 {[%emt 0:00:00]} 55. Rd7+ {[%emt 0:00:00]} Ke4 {[%emt 0:00:00]} 56. Re7+ {
[%emt 0:00:00]} Kf3 {[%emt 0:00:00]} 57. Re3+ {[%emt 0:00:00]} Kg4 {[%emt 0:00:
00]} 58. Rxd3 {[%emt 0:00:00]} Ra2+ {[%emt 0:00:00]} 59. Ke1 {[%emt 0:00:00]}
Rg2 {[%emt 0:00:00]} 60. Rd6 {[%emt 0:00:00]} Kxg3 {[%emt 0:00:42]} 61. Rxg6 {
[%emt 0:00:00]} Kxf4 {[%emt 0:00:24]} 62. Rg7 {[%emt 0:00:00]} Rxg5 {[%emt 0:
00:00]} 63. Rxa7 {[%emt 0:00:00]} h4 {[%emt 0:02:27]} 64. Kf2 {[%emt 0:00:00]}
Kg4 {[%emt 0:00:53]} 65. Kg2 {[%emt 0:00:00]} f4 {[%emt 0:00:51]} 66. Ra4 {
[%emt 0:00:00]} h3+ {[%emt 0:00:26]} 67. Kh2 {[%emt 0:00:00]} Re5 {[%emt 0:00:
00]} 68. Ra2 {[%emt 0:00:00]} Re3 {[%emt 0:01:27]} 69. Rf2 {[%emt 0:00:00]} Kf5
{[%emt 0:00:37]} 70. Ra2 {[%emt 0:00:00]} Ke5 {[%emt 0:01:39]} 71. Ra5+ {
[%emt 0:00:00]} Ke4 {[%emt 0:01:24]} 72. Rh5 {[%emt 0:00:01]} Kd3 {[%emt 0:00:
00]} 73. Kg1 {[%emt 0:03:19]} Ke2 {[%emt 0:01:19]} 74. Ra5 {[%emt 0:00:55]} f3
{[%emt 0:00:40]} 75. Ra2+ {[%emt 0:00:17]} Kd1 {[%emt 0:00:48]} 76. Ra1+ {
[%emt 0:00:54]} Kc2 {[%emt 0:00:10]} 77. Kf2 {[%emt 0:00:41]} Rd3 {[%emt 0:00:
00]} 78. Kg3 {[%emt 0:04:05]} Kb2 {[%emt 0:01:43]} 79. Rf1 {[%emt 0:00:45]} h2
{[%emt 0:01:07]} 1-0

[Event "44th Chess Olympiad Open 2022"]
[Site "Chennai"]
[Date "2022.08.03"]
[Round "6.78"]
[White "Amega-Dzaka, Komi Nukunu"]
[Black "Bridet, Robert"]
[Result "1/2-1/2"]
[WhiteElo "1639"]
[BlackElo "1497"]
[Annotator "NA RC"]
[PlyCount "72"]
[EventDate "2022.??.??"]
[TimeControl "60"]

1. d4 {[%emt 0:00:16]} Nf6 {[%emt 0:00:24]} 2. Nf3 {[%emt 0:01:06]} d5 {
[%emt 0:00:53]} 3. Bf4 {[%emt 0:03:14]} Nc6 {[%emt 0:01:47]} 4. e3 {[%emt 0:00:
00]} e6 {[%emt 0:02:15]} 5. c3 {[%emt 0:01:26]} Bd6 {[%emt 0:00:39]} 6. Bg5 {
[%emt 0:04:30]} h6 {[%emt 0:00:21]} 7. Bh4 {[%emt 0:00:14]} g5 {[%emt 0:04:52]}
8. Bg3 {[%emt 0:04:36]} Ne4 {[%emt 0:00:14]} 9. Bxd6 {[%emt 0:02:02]} Nxd6 {
[%emt 0:00:23]} 10. Nbd2 {[%emt 0:04:51]} b6 {[%emt 0:01:08]} 11. Bd3 {[%emt 0:
00:00]} Ne7 {[%emt 0:02:14]} 12. Ne5 {[%emt 0:09:35]} Bb7 {[%emt 0:03:58]} 13.
Qh5 {[%emt 0:05:54]} a6 {[%emt 0:03:04]} 14. Ndf3 {[%emt 0:03:39]} Nef5 {
[%emt 0:02:12]} 15. Bxf5 {[%emt 0:05:52]} exf5 {[%emt 0:00:46]} 16. Nd2 {
[%emt 0:06:00]} Qe7 {[%emt 0:02:22]} 17. O-O-O {[%emt 0:01:01]} O-O-O {[%emt 0:
00:00]} 18. Qe2 {[%emt 0:01:41]} Qe8 {[%emt 0:03:30]} 19. Rhe1 {[%emt 0:00:39]}
f6 {[%emt 0:03:17]} 20. Nd3 {[%emt 0:00:37]} Qa4 {[%emt 0:01:49]} 21. Kb1 {
[%emt 0:01:25]} Ne4 {[%emt 0:06:09]} 22. Nxe4 {[%emt 0:02:04]} fxe4 {[%emt 0:
00:00]} 23. Nc1 {[%emt 0:02:50]} Bc6 {[%emt 0:05:49]} 24. Nb3 {[%emt 0:02:14]}
Bb5 {[%emt 0:01:47]} 25. Qg4+ {[%emt 0:01:48]} Kb8 {[%emt 0:00:36]} 26. Qe6 {
[%emt 0:01:35]} Bc4 {[%emt 0:05:45]} 27. Nc1 {[%emt 0:00:56]} Rd6 {[%emt 0:00:
00]} 28. Qf7 {[%emt 0:02:38]} a5 {[%emt 0:05:01]} 29. b3 {[%emt 0:01:20]} Qb5 {
[%emt 0:00:28]} 30. a4 {[%emt 0:02:51]} Qa6 {[%emt 0:02:23]} 31. bxc4 {[%emt 0:
00:00]} Qxc4 {[%emt 0:01:48]} 32. Kc2 Rc6 {[%emt 0:01:04]} 33. Ne2 {[%emt 0:00:
00]} Qa2+ {[%emt 0:01:23]} 34. Kc1 {[%emt 0:00:34]} Qa1+ {[%emt 0:00:34]} 35.
Kc2 {[%emt 0:01:36]} Qa2+ {[%emt 0:00:24]} 36. Kc1 {[%emt 0:00:06]} Qa1+ {
[%emt 0:00:21]} 1/2-1/2

[Event "44th Chess Olympiad Open 2022"]
[Site "Chennai"]
[Date "2022.08.03"]
[Round "6.80"]
[White "Chinasamy, Devarajen"]
[Black "Klaas Tokelo"]
[Result "1/2-1/2"]
[WhiteElo "1970"]
[BlackElo "1812"]
[Annotator "NA RC"]
[PlyCount "62"]
[EventDate "2022.??.??"]
[TimeControl "60"]

1. d4 {[%emt 0:00:03]} Nf6 {[%emt 0:02:02]} 2. Nc3 {[%emt 0:00:13]} d5 {
[%emt 0:00:49]} 3. Bf4 {[%emt 0:00:11]} a6 {[%emt 0:00:39]} 4. e3 {[%emt 0:00:
00]} e6 {[%emt 0:00:11]} 5. g4 {[%emt 0:00:23]} Nfd7 {[%emt 0:01:39]} 6. g5 {
[%emt 0:09:12]} c5 {[%emt 0:06:26]} 7. h4 {[%emt 0:03:24]} Qb6 {[%emt 0:02:02]}
8. Na4 {[%emt 0:07:31]} Qa5+ {[%emt 0:05:29]} 9. Nc3 {[%emt 0:00:38]} Nc6 {
[%emt 0:02:15]} 10. a3 {[%emt 0:03:24]} cxd4 {[%emt 0:01:50]} 11. exd4 {
[%emt 0:00:06]} Qb6 {[%emt 0:00:20]} 12. Nf3 {[%emt 0:08:52]} Be7 {[%emt 0:00:
00]} 13. Na4 {[%emt 0:02:19]} Qd8 {[%emt 0:08:20]} 14. Qd2 {[%emt 0:02:53]} b5
{[%emt 0:02:02]} 15. Nc3 {[%emt 0:00:06]} Qb6 {[%emt 0:00:29]} 16. Bg2 {
[%emt 0:08:24]} Bb7 {[%emt 0:00:55]} 17. h5 {[%emt 0:00:33]} O-O-O {[%emt 0:00:
00]} 18. Ne2 {[%emt 0:06:43]} Rde8 {[%emt 0:02:48]} 19. Nc3 {[%emt 0:07:07]}
Bd8 {[%emt 0:00:17]} 20. O-O-O {[%emt 0:01:09]} Bc7 {[%emt 0:01:49]} 21. Bxc7 {
[%emt 0:00:25]} Qxc7 {[%emt 0:00:21]} 22. Kb1 {[%emt 0:02:00]} Kb8 {[%emt 0:00:
00]} 23. Ne2 {[%emt 0:02:00]} f6 {[%emt 0:05:01]} 24. Nf4 {[%emt 0:02:22]} Nb6
{[%emt 0:00:32]} 25. b3 {[%emt 0:00:23]} e5 {[%emt 0:04:07]} 26. dxe5 {[%emt 0:
00:00]} fxe5 {[%emt 0:00:13]} 27. Nxd5 {[%emt 0:00:53]} Nxd5 {[%emt 0:00:13]}
28. Qxd5 {[%emt 0:00:05]} Nd4 {[%emt 0:00:07]} 29. Rxd4 {[%emt 0:04:26]} Bxd5 {
[%emt 0:03:00]} 30. Rxd5 {[%emt 0:00:01]} e4 {[%emt 0:02:12]} 31. Nd4 {[%emt 0:
00:00]} Rhf8 {[%emt 0:12:31]} 1/2-1/2

[Event "44th Chess Olympiad Open 2022"]
[Site "Chennai"]
[Date "2022.08.03"]
[Round "6.80"]
[White "Khalema, Sechaba"]
[Black "Marie, Patrick"]
[Result "1-0"]
[WhiteElo "1790"]
[BlackElo "1921"]
[Annotator "NA RC"]
[PlyCount "56"]
[EventDate "2022.??.??"]
[TimeControl "60"]

1. d4 {[%emt 0:00:04]} Nf6 {[%emt 0:00:06]} 2. c4 {[%emt 0:00:23]} g6 {[%emt 0:
00:00]} 3. Nc3 {[%emt 0:00:09]} Bg7 {[%emt 0:00:07]} 4. e4 {[%emt 0:00:04]} d6
{[%emt 0:00:08]} 5. g3 {[%emt 0:00:04]} O-O {[%emt 0:00:23]} 6. Bg2 {[%emt 0:
00:00]} e5 {[%emt 0:01:42]} 7. Nge2 {[%emt 0:00:07]} Nc6 {[%emt 0:04:49]} 8.
O-O {[%emt 0:00:17]} Bd7 {[%emt 0:05:26]} 9. f3 {[%emt 0:00:09]} Qc8 {[%emt 0:
00:00]} 10. Re1 {[%emt 0:00:10]} exd4 {[%emt 0:12:28]} 11. Nxd4 {[%emt 0:00:22]
} Nxd4 {[%emt 0:00:01]} 12. Qxd4 {[%emt 0:00:05]} Ng4 {[%emt 0:00:06]} 13. Qd2
{[%emt 0:00:40]} Ne5 {[%emt 0:00:13]} 14. b3 {[%emt 0:01:02]} Be6 {[%emt 0:00:
00]} 15. Bb2 {[%emt 0:16:50]} Qd8 {[%emt 0:07:17]} 16. Rad1 {[%emt 0:01:12]} a5
{[%emt 0:06:28]} 17. Qc2 {[%emt 0:05:00]} Qe7 {[%emt 0:06:57]} 18. h3 {[%emt 0:
00:00]} Bxh3 {[%emt 0:04:10]} 19. f4 {[%emt 0:01:24]} Bxg2 {[%emt 0:01:18]} 20.
fxe5 {[%emt 0:00:24]} Bxe5 {[%emt 0:00:17]} 21. Kxg2 {[%emt 0:00:25]} Qg5 {
[%emt 0:00:38]} 22. Rd3 {[%emt 0:06:04]} c6 {[%emt 0:04:52]} 23. Bc1 {[%emt 0:
00:00]} Qg4 {[%emt 0:02:08]} 24. Qe2 {[%emt 0:00:27]} Qxe2+ {[%emt 0:00:53]}
25. Rxe2 {[%emt 0:00:11]} f5 {[%emt 0:02:30]} 26. Na4 {[%emt 0:03:40]} fxe4 {
[%emt 0:00:50]} 27. Ree3 {[%emt 0:00:10]} exd3 28. Rxd3 {[%emt 0:00:31]} Rf7 {
[%emt 0:00:59]} 1-0

[Event "44th Chess Olympiad Open 2022"]
[Site "Chennai"]
[Date "2022.08.03"]
[Round "6.80"]
[White "Tsephe, Lebajoa"]
[Black "Goorsahye, Antoine"]
[Result "1-0"]
[WhiteElo "1712"]
[BlackElo "1783"]
[Annotator "NA RC"]
[PlyCount "79"]
[EventDate "2022.??.??"]
[TimeControl "60"]

1. Nf3 {[%emt 0:00:39]} d5 {[%emt 0:00:34]} 2. g3 {[%emt 0:00:13]} g6 {[%emt 0:
00:00]} 3. Bg2 {[%emt 0:00:06]} Bg7 {[%emt 0:00:07]} 4. O-O {[%emt 0:00:08]} e5
{[%emt 0:00:40]} 5. d3 {[%emt 0:00:09]} Ne7 {[%emt 0:00:18]} 6. c3 {[%emt 0:00:
00]} O-O {[%emt 0:00:13]} 7. Nbd2 {[%emt 0:02:11]} Nbc6 {[%emt 0:01:16]} 8. e4
{[%emt 0:00:18]} h6 {[%emt 0:01:11]} 9. exd5 {[%emt 0:00:18]} Nxd5 {[%emt 0:00:
00]} 10. a4 {[%emt 0:00:18]} a5 {[%emt 0:01:09]} 11. Nc4 {[%emt 0:00:08]} Bf5 {
[%emt 0:03:30]} 12. Re1 {[%emt 0:02:16]} Re8 {[%emt 0:02:18]} 13. Nh4 {[%emt 0:
00:00]} Be6 {[%emt 0:01:01]} 14. Nf3 {[%emt 0:00:34]} Bf5 {[%emt 0:02:25]} 15.
Nh4 {[%emt 0:00:33]} Be6 {[%emt 0:00:18]} 16. Qc2 {[%emt 0:00:47]} g5 {[%emt 0:
00:00]} 17. Nf3 {[%emt 0:00:10]} Bf5 {[%emt 0:00:25]} 18. Nfd2 {[%emt 0:00:16]}
Nb6 {[%emt 0:05:15]} 19. Ne4 {[%emt 0:00:37]} Nxc4 {[%emt 0:06:08]} 20. dxc4 {
[%emt 0:00:50]} Qe7 {[%emt 0:01:13]} 21. Be3 {[%emt 0:00:27]} Rad8 {[%emt 0:00:
00]} 22. Qb3 {[%emt 0:00:15]} Bc8 {[%emt 0:09:15]} 23. Nc5 {[%emt 0:02:02]} Nd4
{[%emt 0:12:27]} 24. Bxd4 {[%emt 0:01:12]} Qf6 {[%emt 0:03:50]} 25. Be3 {
[%emt 0:00:27]} b6 {[%emt 0:00:27]} 26. Ne4 {[%emt 0:00:27]} Qg6 {[%emt 0:00:
00]} 27. c5 {[%emt 0:01:12]} Be6 {[%emt 0:00:30]} 28. c4 {[%emt 0:00:07]} f5 {
[%emt 0:00:15]} 29. Nc3 {[%emt 0:00:07]} f4 {[%emt 0:00:26]} 30. Bc1 {[%emt 0:
00:00]} Rd4 {[%emt 0:03:57]} 31. Nd5 {[%emt 0:06:43]} bxc5 {[%emt 0:03:18]} 32.
Qb5 {[%emt 0:01:31]} Qf7 {[%emt 0:06:54]} 33. Nxc7 {[%emt 0:01:17]} Bd7 {
[%emt 0:02:05]} 34. Qxa5 {[%emt 0:00:32]} f3 {[%emt 0:01:12]} 35. Nxe8 {
[%emt 0:04:10]} fxg2 {[%emt 0:00:26]} 36. Nxg7 {[%emt 0:00:10]} Kxg7 {[%emt 0:
00:00]} 37. Qxc5 {[%emt 0:00:23]} Rxc4 {[%emt 0:00:45]} 38. Qxe5+ {[%emt 0:00:
00]} Kg8 {[%emt 0:00:09]} 39. Be3 {[%emt 0:01:25]} Rc2 {[%emt 0:01:12]} 40. Bd4
{[%emt 0:00:11]} 1-0

[Event "44th Chess Olympiad Open 2022"]
[Site "Chennai"]
[Date "2022.08.03"]
[Round "6.81"]
[White "Croes, Octavio"]
[Black "Guterres, Cosme"]
[Result "1-0"]
[WhiteElo "1794"]
[BlackElo "1692"]
[Annotator "NA RC"]
[PlyCount "101"]
[EventDate "2022.??.??"]
[TimeControl "60"]

1. d4 {[%emt 0:00:03]} e6 {[%emt 0:00:15]} 2. c4 {[%emt 0:00:06]} g6 {[%emt 0:
00:00]} 3. Nc3 {[%emt 0:00:15]} Bg7 {[%emt 0:00:11]} 4. e4 {[%emt 0:00:23]} d6
{[%emt 0:00:30]} 5. Nf3 {[%emt 0:00:34]} Ne7 {[%emt 0:00:23]} 6. Be2 {[%emt 0:
00:00]} c6 {[%emt 0:00:17]} 7. O-O {[%emt 0:00:17]} O-O {[%emt 0:01:13]} 8. Be3
{[%emt 0:01:22]} Nd7 {[%emt 0:00:57]} 9. Qd2 {[%emt 0:01:34]} f6 {[%emt 0:00:
00]} 10. d5 {[%emt 0:06:02]} exd5 {[%emt 0:01:08]} 11. cxd5 {[%emt 0:01:15]} c5
{[%emt 0:00:40]} 12. Rac1 {[%emt 0:09:26]} b6 {[%emt 0:00:37]} 13. Nb5 {
[%emt 0:04:45]} Nb8 {[%emt 0:00:30]} 14. Bf4 {[%emt 0:01:00]} a6 {[%emt 0:00:
00]} 15. Nxd6 {[%emt 0:00:53]} Nd7 {[%emt 0:00:58]} 16. Nxc8 {[%emt 0:00:23]}
Nxc8 {[%emt 0:01:19]} 17. d6 {[%emt 0:08:22]} Ra7 {[%emt 0:00:36]} 18. b4 {
[%emt 0:00:16]} Kh8 {[%emt 0:02:10]} 19. Rfd1 {[%emt 0:03:17]} Re8 {[%emt 0:00:
00]} 20. bxc5 {[%emt 0:03:43]} bxc5 {[%emt 0:00:43]} 21. Qd5 {[%emt 0:04:26]}
Ncb6 {[%emt 0:01:59]} 22. Qc6 {[%emt 0:04:00]} Ra8 {[%emt 0:01:09]} 23. Be3 {
[%emt 0:05:47]} Rc8 {[%emt 0:02:22]} 24. Qb7 {[%emt 0:00:16]} Rb8 {[%emt 0:00:
00]} 25. Qc7 {[%emt 0:07:23]} Rc8 {[%emt 0:01:08]} 26. Qxd8 {[%emt 0:00:24]}
Rexd8 {[%emt 0:00:57]} 27. Bxa6 {[%emt 0:03:49]} Ra8 {[%emt 0:01:01]} 28. Bb5 {
[%emt 0:02:24]} Rxa2 {[%emt 0:04:22]} 29. Bxd7 {[%emt 0:03:45]} Nxd7 {[%emt 0:
00:00]} 30. Bxc5 {[%emt 0:00:43]} Nxc5 {[%emt 0:00:15]} 31. Rxc5 {[%emt 0:00:
00]} h6 {[%emt 0:01:10]} 32. Kf1 {[%emt 0:02:49]} Bf8 {[%emt 0:01:28]} 33. e5 {
[%emt 0:01:33]} fxe5 {[%emt 0:01:02]} 34. Nxe5 {[%emt 0:00:19]} Kg7 {[%emt 0:
00:00]} 35. Rc7+ {[%emt 0:01:51]} Kf6 {[%emt 0:00:42]} 36. Nd7+ {[%emt 0:00:10]
} Ke6 {[%emt 0:01:23]} 37. Nxf8+ {[%emt 0:00:00]} Rxf8 {[%emt 0:00:39]} 38.
Re7+ {[%emt 0:01:37]} Kf6 {[%emt 0:00:39]} 39. Rd3 {[%emt 0:03:14]} Ra1+ {
[%emt 0:01:47]} 40. Ke2 {[%emt 0:01:36]} Ra2+ {[%emt 0:00:29]} 41. Ke3 {
[%emt 0:30:24]} g5 {[%emt 0:31:15]} 42. Re4 {[%emt 0:04:15]} Kg6 {[%emt 0:00:
00]} 43. d7 {[%emt 0:00:24]} Rd8 {[%emt 0:00:56]} 44. Re8 {[%emt 0:01:33]} Raa8
{[%emt 0:00:24]} 45. Rxd8 {[%emt 0:00:17]} Rxd8 {[%emt 0:00:22]} 46. Ke4 {
[%emt 0:00:15]} h5 {[%emt 0:00:32]} 47. Ke5 {[%emt 0:00:18]} Kf7 {[%emt 0:00:
00]} 48. Kd6 {[%emt 0:01:11]} Kf6 {[%emt 0:00:26]} 49. Rf3+ {[%emt 0:00:30]}
Kg7 {[%emt 0:00:15]} 50. Ke7 {[%emt 0:00:10]} Ra8 {[%emt 0:00:36]} 51. d8=Q {
[%emt 0:02:02]} 1-0

[Event "44th Chess Olympiad Open 2022"]
[Site "Chennai"]
[Date "2022.08.03"]
[Round "6.81"]
[White "de Araujo, Helder"]
[Black "Pesqueira, Jose"]
[Result "1-0"]
[WhiteElo "1742"]
[BlackElo "1809"]
[Annotator "NA RC"]
[PlyCount "107"]
[EventDate "2022.??.??"]
[TimeControl "60"]

1. c4 {[%emt 0:00:16]} g6 {[%emt 0:00:34]} 2. Nc3 {[%emt 0:00:11]} Bg7 {
[%emt 0:00:18]} 3. g3 {[%emt 0:00:17]} c5 {[%emt 0:01:34]} 4. Bg2 {[%emt 0:00:
00]} Nc6 {[%emt 0:00:27]} 5. Nf3 {[%emt 0:00:44]} e6 {[%emt 0:03:43]} 6. d3 {
[%emt 0:00:48]} d5 {[%emt 0:06:14]} 7. cxd5 {[%emt 0:00:14]} exd5 {[%emt 0:00:
00]} 8. O-O {[%emt 0:00:16]} Be6 {[%emt 0:01:47]} 9. Ng5 {[%emt 0:02:00]} Nge7
{[%emt 0:02:45]} 10. Nxe6 {[%emt 0:05:12]} fxe6 {[%emt 0:00:30]} 11. Bf4 {
[%emt 0:04:10]} O-O {[%emt 0:04:47]} 12. Qc1 {[%emt 0:01:04]} b6 {[%emt 0:00:
00]} 13. Bh3 {[%emt 0:02:12]} Nf5 {[%emt 0:09:32]} 14. e4 {[%emt 0:05:33]} Nfd4
{[%emt 0:07:29]} 15. exd5 {[%emt 0:01:10]} exd5 {[%emt 0:01:07]} 16. Bg2 {
[%emt 0:00:37]} Kh8 {[%emt 0:11:22]} 17. Re1 {[%emt 0:01:10]} Nb4 {[%emt 0:00:
00]} 18. Rd1 {[%emt 0:05:08]} Rc8 {[%emt 0:08:51]} 19. Qd2 {[%emt 0:01:52]} Qd7
{[%emt 0:15:35]} 20. Ne2 {[%emt 0:06:18]} Nbc2 {[%emt 0:00:18]} 21. Rac1 {
[%emt 0:02:11]} Nxe2+ {[%emt 0:00:50]} 22. Qxe2 {[%emt 0:01:38]} Nd4 {[%emt 0:
00:00]} 23. Qd2 {[%emt 0:01:59]} Qg4 {[%emt 0:01:39]} 24. Re1 {[%emt 0:05:38]}
Rxf4 {[%emt 0:02:17]} 25. Qxf4 {[%emt 0:04:39]} Ne2+ {[%emt 0:00:25]} 26. Rxe2
{[%emt 0:01:28]} Qxe2 {[%emt 0:00:02]} 27. Bf3 {[%emt 0:02:36]} Qxb2 {[%emt 0:
00:00]} 28. Re1 {[%emt 0:00:38]} Rf8 {[%emt 0:01:17]} 29. Qd6 {[%emt 0:02:53]}
Qf6 {[%emt 0:11:37]} 30. Qxf6 {[%emt 0:00:39]} Bxf6 {[%emt 0:00:01]} 31. Bxd5 {
[%emt 0:00:16]} Bd4 {[%emt 0:00:54]} 32. Re2 {[%emt 0:00:08]} Kg7 {[%emt 0:00:
00]} 33. Kg2 {[%emt 0:00:21]} Bf6 {[%emt 0:00:41]} 34. f4 {[%emt 0:00:58]} Rd8
{[%emt 0:00:06]} 35. Bc4 {[%emt 0:00:07]} Rd7 {[%emt 0:00:19]} 36. Kf3 {
[%emt 0:00:36]} Rd4 {[%emt 0:00:56]} 37. Re8 {[%emt 0:00:39]} Rd7 {[%emt 0:00:
00]} 38. g4 {[%emt 0:00:11]} h6 {[%emt 0:00:46]} 39. f5 {[%emt 0:10:53]} gxf5 {
[%emt 0:00:12]} 40. gxf5 {[%emt 0:00:25]} Re7 {[%emt 0:01:04]} 41. Rg8+ {
[%emt 0:30:39]} Kh7 {[%emt 0:30:06]} 42. Rg6 {[%emt 0:00:26]} Bg5 {[%emt 0:00:
00]} 43. Kg4 {[%emt 0:00:00]} Re2 {[%emt 0:00:00]} 44. h4 {[%emt 0:00:00]} Bd2
{[%emt 0:00:00]} 45. Rd6 {[%emt 0:00:00]} Kg7 {[%emt 0:00:00]} 46. Rd7+ {
[%emt 0:00:00]} Kf8 {[%emt 0:00:00]} 47. Rf7+ {[%emt 0:00:00]} Ke8 {[%emt 0:00:
00]} 48. Rxa7 {[%emt 0:00:00]} Rf2 {[%emt 0:00:00]} 49. Be6 {[%emt 0:00:00]}
Rf4+ {[%emt 0:00:00]} 50. Kh5 {[%emt 0:00:00]} Rf3 {[%emt 0:00:00]} 51. Kg6 {
[%emt 0:00:00]} Rg3+ {[%emt 0:00:00]} 52. Kh7 {[%emt 0:00:00]} Rxd3 {[%emt 0:
00:00]} 53. f6 {[%emt 0:00:00]} Rd8 {[%emt 0:00:00]} 54. Kg8 {[%emt 0:00:00]}
1-0